Cogmind - Beta 15 @@@ ROGUE MODE // 2025.07.25 @ 12:28:35 Player: AshCrow Result: Destroyed by Autobeam Turret with Autobeam Performance ------------- Evolutions (0) 0 Regions Visited (2) 400 Robots Destroyed (16) 80 Value Destroyed (412) 412 Prototype IDs (11) 220 Alien Tech Used (0) 0 Bonus (0) 0 TOTAL SCORE: 1112 Bonus ------- None Cogmind --------- Core Integrity 0/250 Matter 295/300 Energy 100/100 System Corruption 11% Temperature Cool (18) Movement Flying (120) Ox1 Location -10/Subcaves Parts ------- > --- POWER (1) -------- (None) > --- PROPULSION (2) --- Flight Unit > --- UTILITY (2) ------ (None) > --- WEAPON (2) ------- Light Assault Rifle Subdweller Machine Gun > --- INVENTORY (5) ---- Ion Engine Subdweller Machine Gun Scrap Shield Fragment (48) Scrap Shield Fragment (47) Scrap Shield Fragment (41) Peak State ------------ > --- POWER ------------ Light Nuclear Core > --- PROPULSION ------- Makeshift Flight Unit > --- UTILITY ---------- Scrap Shield > --- WEAPON ----------- Light Assault Rifle Subdweller Machine Gun > --- INVENTORY -------- Ion Engine Subdweller Machine Gun Scrap Shield Fragment [Rating: 14] Favorites ----------- Power Subdweller Power Source Engine Subdweller Power Source Power Core Light Nuclear Core Propulsion Light Treads Treads Light Treads Flight Unit Makeshift Flight Unit Utility Small Storage Unit Device Tractor Beam Storage Small Storage Unit Processor Visual Processing Unit Protection Scrap Shield Weapon Light Assault Rifle Energy Gun Medium Laser Energy Cannon Particle Cannon Ballistic Gun Light Assault Rifle Launcher Grenade Launcher Build | -11 -10 -10 ------- Run | Yrd Mat Sub Slots Evolved . | . . . Power . | . . . Propulsion . | . . . Utility . | . . . Weapon . | . . . Parts Attached 20 | 6 4 10 Power 4 | 1 . 3 Engine 3 | 1 . 2 Core 1 | . . 1 Reactor . | . . . Propulsion 4 | 2 . 2 Treads 2 | 2 . . Leg . | . . . Wheel . | . . . Hover . | . . . Flight 2 | . . 2 Utility 4 | 1 1 2 Device 1 | . 1 . Storage 1 | 1 . . Processor 1 | . . 1 Hackware . | . . . Protection 1 | . . 1 Artifact . | . . . Weapon 8 | 2 3 3 Energy Gun 1 | 1 . . Energy Cannon 1 | . 1 . Ballistic Gun 5 | 1 2 2 Ballistic Cannon . | . . . Launcher 1 | . . 1 Special Weapon . | . . . Impact Weapon . | . . . Slashing Weapon . | . . . Piercing Weapon . | . . . Special Melee Weapon . | . . . Unidentified Prototypes . | . . . Parts Lost 6 | . . 6 Power 1 | . . 1 Propulsion 3 | . . 3 Utility 2 | . . 2 Weapon . | . . . Highest Loss Streak 3 | . . 3 To Critical Strikes . | . . . Average Backups 4 | . 3 4 Power 1 | . 1 1 Propulsion . | . . . Utility 1 | . 1 1 Weapon 1 | . . 1 Tool/Special . | . . . Unused Backups 3 | . . 3 Power 1 | . . 1 Propulsion . | . . . Utility 1 | . . 1 Weapon 1 | . . 1 Tool/Special . | . . . Average Slot Usage (%) 87 | . 98 83 Engine 9 | . 14 7 Core 4 | . . 6 Treads 16 | . 28 12 Flight 4 | . . 5 Device 3 | . 12 1 Storage 9 | . 14 8 Processor 5 | . . 6 Protection 4 | . . 5 Energy Gun 2 | . 11 . Energy Cannon 6 | . 2 7 Ballistic Gun 18 | . 14 19 Peak Build Rating 14 | 6 9 14 Average Rating 11 | 4 7 12 On Entrance 5 | . 6 9 Naked Turns . | . . . Heaviest Build 28 | 13 18 28 Greatest Support 40 | 40 40 40 Greatest Overweight (x) 5 | . . 5 Average Overweight (x) . | . . . Largest Inventory Capacity 8 | 8 8 8 Average Capacity 7 | 6 8 6 Most Carried 8 | 1 6 8 Average Carried 5 | . 3 6 Final Capacity 8 | 8 8 5 Final Carried 6 | 1 6 5 Class Distribution -------------------- 100% | Mutant Dominant Class ---------------- Mutant | -10/Materials Mutant | -10/Subcaves Resources | -11 -10 -10 ----------- Run | Yrd Mat Sub Matter Collected 772 | 240 147 385 Remotely 147 | . 147 . Salvage Created 474 | . 153 321 Parts 30 | . 10 20 Haulers Intercepted . | . . . Recyclers Shooed . | . . . Parts Field Recycled . | . . . Retrieved Matter . | . . . Parts Self-Destructed 5 | . . 5 Prevented . | . . . Kills | -11 -10 -10 ------- Run | Yrd Mat Sub Combat Hostiles Destroyed 15 | . 5 10 Guns 15 | . 5 10 Classes Destroyed 5 | . 3 2 Watcher 1 | . 1 . Swarmer 7 | . 3 4 Grunt 2 | . 2 . Sentry 1 | . . 1 Subdweller 5 | . . 5 Best Kill Streak 4 | . 4 4 Combat Bots Only 4 | . 3 4 Max Kills in Single Turn 1 | . 1 1 Gunslinging . | . . . Exploded . | . . . Melee . | . . . Uniques/NPCs Destroyed . | . . . Combat | -11 -10 -10 -------- Run | Yrd Mat Sub Hostile Shots Fired 123 | . 20 103 Missed 35 | . 5 30 Hits 88 | . 15 73 Projectile 88 | . 15 73 Damage Taken 1136 | . 163 973 Core 251 | . 34 217 Absorbed by Shields . | . . . Core Remaining (%) 100 | 100 . . Volleys Fired 51 | . 14 37 Largest 2 | . 2 2 Hottest 96 | . 70 96 Shots Fired 97 | . 28 69 Gun 68 | . 28 40 Cannon 21 | . . 21 Launcher 8 | . . 8 Special . | . . . Kinetic 54 | . 14 40 Thermal 35 | . 14 21 Explosive 8 | . . 8 Electromagnetic . | . . . Robot Hit Streak 15 | . 7 15 Robot Miss Streak 4 | . 2 4 Penetration Max . | . . . Secondary Targets 2 | . . 2 Max Gunslinging Chain 1 | . . 1 Shots Hit Robots 64 | . 19 45 Core Hits 29 | . 13 16 Critical Kills . | . . . Critical Parts Destroyed . | . . . Critical Strikes 3 | . 3 . Burn 3 | . 3 . Melee Attacks . | . . . Impact . | . . . Slashing . | . . . Piercing . | . . . Sneak Attacks . | . . . Combat Hostiles . | . . . Follow-up Attacks . | . . . Damage Inflicted 1046 | . 214 832 Guns 635 | . 208 427 Cannons 392 | . . 392 Explosions . | . . . Melee . | . . . Ramming 19 | . 6 13 Kinetic 522 | . 95 427 Thermal 505 | . 113 392 Explosive . | . . . Electromagnetic . | . . . Impact . | . . . Slashing . | . . . Piercing . | . . . Highest Corruption 11 | . . 11 Average Corruption 10 | . . 10 Corruption Purged . | . . . Corruption Blocked . | . . . Effects 54 | . . 54 Message Errors 8 | . . 8 Matter Fused 12 | . . 12 Heat Flow Errors 6 | . . 6 Energy Discharges 13 | . . 13 Data Loss (minor) 9 | . . 9 Data Loss (major) 2 | . . 2 Misfires 3 | . . 3 Alerts 1 | . . 1 Overload Shots . | . . . Overflow Damage 2 | . . 2 Projectiles . | . . . Explosions 2 | . . 2 Melee . | . . . Knockbacks . | . . . Impact . | . . . Kinetic . | . . . Secondary . | . . . Self-Inflicted Damage 37 | . . 37 Shots 2 | . . 2 Rammed 2 | . 2 . Targets Rammed 2 | . 2 . Kicked . | . . . Crushed . | . . . Highest Temperature 261 | . 189 261 Average Temperature 63 | . 83 50 Received Heat Transfer 201 | . 69 132 Siege Activations . | . . . Martial Activations . | . . . Shielding Activations . | . . . Robots Disrupted . | . . . Combat Hostiles . | . . . Robots Corrupted . | . . . Combat Hostiles . | . . . Parts Fried . | . . . Impact Corruptions . | . . . Robots Melted . | . . . Combat Hostiles . | . . . Parts Melted 2 | . 1 1 Heat Transferred 1258 | . 555 703 Parts Sabotaged . | . . . Parts Stolen . | . . . Parts Stripped . | . . . Power Chain Reactions . | . . . Alert | -11 -10 -10 ------- Run | Yrd Mat Sub Maximum Alert Level . | . . . Low Security (%) 100 | 100 100 . Level 1 . | . . . Level 2 . | . . . Level 3 . | . . . Level 4 . | . . . Level 5 . | . . . High Security . | . . . Max Security . | . . . Peak Influence 77 | . 77 . Initial . | . . . Average 12 | . 13 . Influence Increases 263 | . 133 130 Destroy 0b10 Robot/C 200 | . 100 100 Destroy 0b10 Robot/NC 5 | . 5 . Destroy Leader 22 | . 22 . Successful Hack 6 | . 6 . Lose Combat Pursuer 30 | . . 30 Influence Decreases 184 | . 133 51 Time Decay 154 | . 133 21 Lost Part 30 | . . 30 Squads Dispatched 3 | . 3 . Investigation 1 | . 1 . Extermination . | . . . Reinforcement 2 | . 2 . Assault . | . . . Garrison . | . . . Intercept . | . . . Searches Triggered . | . . . Construction Impeded . | . . . Haulers Reinforced . | . . . Active Scanning Responses . | . . . Cargo Convoy Interrupts . | . . . Stealth | -11 -10 -10 --------- Run | Yrd Mat Sub Distress Signals . | . . . Communications Jammed . | . . . Distress Signals . | . . . Times Spotted 27 | . 11 16 Peak Tracking Total 6 | . 4 6 Tactical Retreats 1 | . . 1 Traps | -11 -10 -10 ------- Run | Yrd Mat Sub Traps Triggered 2 | . . 2 Indirectly . | . . . Trap Hack Attempts . | . . . Triggered . | . . . Disarmed . | . . . Reprogrammed . | . . . Reused . | . . . Traps Extracted . | . . . Installed . | . . . Triggered . | . . . Machines | -11 -10 -10 ---------- Run | Yrd Mat Sub Machines Disabled . | . . . Max in Single Turn . | . . . Machines Repaired . | . . . Machines Dismantled . | . . . Machines Sabotaged . | . . . Overloaded Fab Kills . | . . . Hacking | -11 -10 -10 --------- Run | Yrd Mat Sub Machines Accessed 4 | . 2 2 Terminals 2 | . 2 . Fabricators . | . . . Repair Stations . | . . . Recycling Units . | . . . Scanalyzers . | . . . Garrison Access . | . . . Total Hacks 17 | . 4 13 Successful 14 | . 1 13 Failed 3 | . 3 . Catastrophic . | . . . Database Lockouts . | . . . Manual . | . . . Terminals 4 | . 4 . Fabricators . | . . . Repair Stations . | . . . Recycling Units . | . . . Scanalyzers . | . . . Garrison Access . | . . . Terminal Hacks 14 | . 1 13 Record 12 | . . 12 Recycling Unit Index 1 | . 1 . Proto ID Catalog 1 | . . 1 Fabricator Hacks . | . . . Repair Station Hacks . | . . . Recycling Unit Hacks . | . . . Scanalyzer . | . . . Garrison Access Hacks . | . . . Unauthorized Hacks . | . . . Terminals . | . . . Fabricators . | . . . Repair Stations . | . . . Recycling Units . | . . . Scanalyzers . | . . . Garrison Access . | . . . Data Cores Recovered . | . . . Used . | . . . Hacking Detections 1 | . 1 . Full Trace Events 1 | . 1 . Feedback Events . | . . . Feedback Blocked . | . . . Robot Schematics Acquired . | . . . Robots Built . | . . . Authchips . | . . . Time . | . . . Total Robot Build Rating . | . . . Part Schematics Acquired . | . . . Parts Built . | . . . Authchips . | . . . Time . | . . . Total Part Build Rating . | . . . Parts Repaired . | . . . Time . | . . . Parts Recycled . | . . . Recycled Matter . | . . . Retrieved Matter . | . . . Retrieved Components . | . . . Parts Scanalyzed . | . . . Part Schematics Acquired . | . . . Parts Damaged . | . . . Bothacking | -11 -10 -10 ------------ Run | Yrd Mat Sub Used RIF Installer . | . . . Robots Hacked . | . . . Non-combat . | . . . Combat . | . . . Robot Hacks Applied . | . . . Relay Couplers Released . | . . . Fabnet Peak Effective % . | . . . Robots Rewired . | . . . Allies Hacked . | . . . Hacks Repelled . | . . . Allies | -11 -10 -10 -------- Run | Yrd Mat Sub Total Allies . | . . . Largest Group . | . . . Highest-Rated Group . | . . . Highest-Rated Ally . | . . . Total Orders . | . . . Ally Attacks . | . . . Total Damage . | . . . Kills . | . . . Allies Corrupted . | . . . Allies Melted . | . . . Intel | -11 -10 -10 ------- Run | Yrd Mat Sub Active Infowar (turns) 1484 | . . 1484 Optics 1484 | . . 1484 Robot Analysis Total . | . . . Derelict Logs Recovered 3 | . . 3 Drone Launches . | . . . Drone Recoveries . | . . . Exploration | -11 -10 -10 ------------- Run | Yrd Mat Sub Turns Passed 4242 | 68 936 3238 Spaces Moved 1948 | 43 437 1468 Core 48 | 9 . 39 Treads 1444 | 34 437 973 Legs . | . . . Wheels . | . . . Hover . | . . . Flight 456 | . . 456 Fastest Speed 50 | 50 160 145 Average Speed 194 | 136 160 205 Slowest Speed 325 | 160 160 325 Overloaded Moves . | . . . Propulsion Burnouts . | . . . Robots Hopped . | . . . Potential Cave-ins . | . . . Cave-ins Triggered . | . . . Exploration Rate (%) 47 | 4 57 80 Regions Visited 2 Branch Regions 1 Pre-discovered Areas 2 | . . 2 Known Exits Taken . | . . . Unknown Exits Taken 2 | 1 1 . Scrap Searched 5 | . . 5 Spaces Dug 21 | . . 21 Terrain Destroyed 21 | . . 21 Melee . | . . . Projectile . | . . . AOE 21 | . . 21 Terrain Rammed 11 | . . 11 Walls Destroyed . | . . . Machines Disabled . | . . . Actions | -11 -10 -10 --------- Run | Yrd Mat Sub Total 2302 | 49 646 1607 Wait 237 | . 187 50 Move 1946 | 42 436 1468 Hop . | . . . Pick Up 16 | 1 3 12 Fast Attach 9 | 6 1 2 Attach 7 | . . 7 Detach 3 | . . 3 Swap 6 | . 3 3 Drop 14 | . . 14 Fire 51 | . 14 37 Melee . | . . . Ram 11 | . . 11 Kick . | . . . Crush 2 | . 2 . Escape Stasis . | . . . Rewire . | . . . Trap . | . . . Miscellaneous . | . . . Route ------- -11/Scrapyard -10/Materials (discovered 4 exits: [*Mat] / [*Min x2] / *Sub) -10/Subcaves (discovered 3 exits: [*Mat x2] / [*Rec]) History --------- Turn | Location | Event 10 | -11/Scrapyard | Discovered new exit (range 15) 69 | -11/Scrapyard | Entered Materials 114 | -10/Materials | Discovered new exit (range 6) 312 | -10/Materials | Build established: Mutant 410 | -10/Materials | Discovered new exit (range 15) 729 | -10/Materials | Discovered new exit (range 5) 983 | -10/Materials | Discovered new exit (range 9) 1005 | -10/Materials | Entered Subcaves 1029 | -10/Subcaves | Learned Materials security intel 1335 | -10/Subcaves | Shifting Twisted Machinery released Scrap Shield 1368 | -10/Subcaves | Shifting Twisted Machinery released Scrap Shield 1392 | -10/Subcaves | Learned location of Zion (-6) 1446 | -10/Subcaves | Shifting Twisted Machinery released Battle Cannon 1459 | -10/Subcaves | Discovered new exit (range 5) 1663 | -10/Subcaves | Ambushed by Subdwellers from Twisted Machinery 1778 | -10/Subcaves | Disturbed a concealed Subdweller 1935 | -10/Subcaves | Visited Clippyterm 1939 | -10/Subcaves | Learned location of Extension (-5) 2019 | -10/Subcaves | Learned Materials terminal intel 2282 | -10/Subcaves | Core integrity fell below 50% 2725 | -10/Subcaves | Visited 4L-MR0's lab 2788 | -10/Subcaves | System corruption reached 10% 3518 | -10/Subcaves | Discovered new exit (range 15) 4210 | -10/Subcaves | Core integrity fell below 20% 4237 | -10/Subcaves | Discovered new exit (range 15) 4243 | -10/Subcaves | Destroyed by Autobeam Turret with Autobeam Last Messages --------------- System corrupted: Energy discharge (-46). Acquired 52 matter. System corrupted: Energy discharge (-56). S-10 Pest destroyed. Switching to secondary target: S-10 Pest. Destroyed Flight Unit. Scrap Shield destroyed. S-10 Pest destroyed. Switching to secondary target: S-10 Pest. Flight Unit fries itself beyond repair. System corrupted: Substantial component data lost. S-10 Pest destroyed. Lgt. Assault Rifle fries itself beyond repair. Acquired 11 matter. Acquired 5 matter. EXIT=FOUND Mak. Flight Unit destroyed. Acquired Flight Unit. Lgt. Nuclear Core destroyed. Map ----- +----------------------------------------------------+ | ???????## #?##### #?# # #??## | | ????????# #?# ## ### #### ## | | ????????# ### #?# ## ### # ## #### | | ????????# ##?# ### #?#### #?# | | ????????###??## #???# " #? | | ??????????????## ##???# " ##? | | ???????????????### #????# " ###?? | | ?????????????????## #????### """" #???? | | ??????????????????## ##??????###""" %#??? | | ???????????????????# ##?????????#"## #??# | | ???????????????????# #??????????##### ##??# | | ?????????????????? ##?????????????# ##???# | | ????????????????? #?????????????#######? | | ???????????????? ## #????????????????#% ## | | ??????????????? #?# #???????????????# # | | ??????????????? #??# ??????????????## ! | | ?????????????? #???## ""???###????????##& | | ????????????? ?????# #"#""" " ?????????# | | ???????????? ??????# ###?"""" #????????## | | ???????????? ??##### "#???# """#?????????## | | ??????????? ## "#####"""""##?????????? | | ??????????? " "#""#""" ##??????### | | ???????????? "|" " #??????# | | ???????????? [% |[%& # ???####?## | | ???????????????????## %[& # ## ##?## #??# | | ????????????????????# @!%### #### ### #??## | | ????????????????????# [ *### ## #???# | | ????????????????????# ### ## ## #???? | | ????????????????????#???# ## # ### ####? | | ????????????????????????# ## ##?## ## | | ????????????????????????# ## #??# # | | ????????????????????????# ### ##?# | | ????????????????????????# #?## ### | | ???????????????????????? ??## ## | | ???????????????????????? ???# ####" | | ??????????????????????? ???# ## #??#" | | ??????????????????????? t t ??# ####??## | | ??????????????????????? " " ??# ##?????# | | ???????????????????????""" """??# ##????? | | ???????????????????????##?